bitfinex-derivatives/quotes_ETHF0:USTF0_20260201
["timestamp","ask_amount","ask_price","bid_price","bid_amount"]
[1769960369434,0.15776747,2310.5,2308.5,0.4733883]
[1769960369941,0.15776747,2310.3,2308.5,0.4733883]
[1769960371240,0.15441944,2310.8,2308.5,0.4733883]
[1769960371434,3.49495088,2310.9,2308.5,0.4733883]
[1769960371435,0.15441944,2309.8,2308.5,0.00363524]
[1769960371636,3.48354435,2310.6,2308.5,0.4733883]
[1769960371841,0.01140653,2310.9,2308.9,0.46975306]
[1769960372040,27.353,2312.9,2308.6,3.48354435]
[1769960372041,0.15441944,2312.7,2309.8,0.46975306]
[1769960372247,0.15441944,2312.6,2310.0,0.46975306]
[1769960372547,0.15441944,2312.1,2310.0,0.46975306]
[1769960372842,0.15664657,2311.1,2308.9,0.46975306]
[1769960373034,0.15664657,2310.9,2308.9,0.46975306]
[1769960373635,3.48354435,2312.0,2309.2,0.46975306]
[1769960373841,0.15664657,2312.8,2310.4,0.46975306]
[1769960374037,3.64019092,2314.0,2310.9,0.46975306]
[1769960374243,0.15664657,2313.9,2311.7,0.46975306]
[1769960374443,0.15664657,2312.9,2310.5,0.46975306]
[1769960374746,0.14941373,2312.5,2310.5,0.46975306]
[1769960374944,0.14941373,2312.0,2310.4,0.00523664]
[1769960375437,0.14941373,2311.5,2309.4,0.46975306]
[1769960375835,4.42530308,2314.3,2309.6,0.21668]
[1769960375836,0.14941373,2312.6,2309.6,0.21668]
[1769960376136,0.14941373,2313.7,2311.1,0.46975306]
[1769960376342,0.00479849,2313.7,2311.3,0.46975306]
[1769960376549,0.00479849,2313.7,2311.7,0.46975306]
[1769960376751,0.00479849,2313.7,2311.8,0.46975306]
[1769960377242,0.16526659,2316.6,2313.9,0.50034105]
[1769960377442,0.16526659,2316.6,2314.1,0.50034105]
[1769960377947,3.64588471,2316.2,2314.1,0.50034105]
[1769960378244,3.64588471,2316.2,2314.1,0.50570233]
[1769960378245,0.16234036,2316.2,2314.1,0.50570233]
[1769960378450,0.16234036,2316.6,2314.1,0.50570233]
[1769960378748,3.48354435,2316.5,2314.1,0.50570233]
[1769960378950,0.17091364,2317.6,2314.1,0.50570233]
[1769960379142,0.17091364,2317.9,2314.1,0.50570233]
[1769960379340,3.48354435,2317.3,2315.1,0.50034105]
[1769960379537,0.17091364,2317.2,2315.1,0.50034105]
[1769960379747,3.48354435,2316.3,2314.5,0.50034105]
[1769960379952,4.07091364,2316.5,2314.5,0.50034105]
[1769960380244,2.873,2317.2,2314.5,0.50034105]
[1769960380245,3.65445799,2317.3,2314.5,0.50034105]
[1769960380445,3.65445799,2317.3,2314.1,0.00536128]
[1769960380446,3.65445799,2315.9,2314.1,0.50570233]
[1769960380745,3.64405907,2316.9,2314.3,0.50034105]
[1769960381245,0.16051472,2316.9,2314.3,0.50034105]
[1769960381451,3.48354435,2317.5,2314.5,0.50034105]
[1769960381744,3.48354435,2319.0,2315.7,3.9838854]
[1769960381953,0.16051472,2319.4,2316.3,0.50034105]
[1769960382245,0.16051472,2318.4,2316.5,0.50034105]
[1769960382447,3.48354435,2317.5,2316.3,0.5044813]
[1769960382650,3.898,2318.0,2316.3,0.5044813]
[1769960382943,0.17128593,2317.8,2316.3,0.00414025]
[1769960383146,0.17128593,2318.7,2316.5,0.50034105]
[1769960383542,3.48354435,2319.1,2316.5,0.50034105]
[1769960383848,0.17128593,2319.6,2316.6,0.50034105]
[1769960384045,3.65483028,2318.7,2316.6,0.50034105]
[1769960384248,0.17128593,2318.5,2316.6,0.50034105]
[1769960384553,3.48354435,2317.2,2315.5,0.46545151]
[1769960384742,0.17128593,2317.6,2314.4,0.46545151]
[1769960384743,0.16100223,2316.1,2314.4,0.46545151]
[1769960384940,4.05700223,2316.6,2314.4,0.46545151]
[1769960385245,0.16100223,2316.6,2314.4,0.46545151]
[1769960385449,3.48354435,2316.4,2314.4,0.46545151]
[1769960385643,0.16100223,2315.8,2314.4,0.0032249]
[1769960385845,3.48354435,2315.9,2314.4,0.0032249]
[1769960386047,3.48354435,2315.9,2313.9,0.46545151]
[1769960386048,3.48354435,2315.4,2313.9,0.46545151]
[1769960386347,0.16100223,2315.8,2313.9,0.46545151]
[1769960386550,0.16100223,2315.8,2312.8,0.46545151]
[1769960386747,0.16668377,2315.4,2312.8,0.46545151]
[1769960387044,3.48354435,2315.9,2312.8,0.46545151]
[1769960387248,0.16668377,2316.0,2313.1,0.46545151]
[1769960387450,3.48354435,2315.8,2313.1,0.46545151]
[1769960388046,0.16668377,2315.7,2313.1,0.46545151]
[1769960388442,0.16668377,2315.2,2313.1,0.46545151]
[1769960388647,3.894,2315.1,2313.1,0.46545151]
[1769960388843,3.64572264,2315.3,2313.1,0.46545151]
[1769960389049,0.16217829,2315.2,2313.1,0.46545151]
[1769960389348,3.48354435,2315.3,2313.1,0.46545151]
[1769960389541,3.64572264,2315.3,2313.1,0.46545151]
[1769960389850,2.537,2316.2,2313.1,0.46545151]
[1769960389851,0.16217829,2315.8,2313.1,0.46545151]
[1769960390147,0.16217829,2315.5,2313.1,0.46545151]
[1769960390543,3.48354435,2315.1,2313.1,0.46545151]
[1769960390853,3.893,2315.0,2313.1,0.46545151]
[1769960391050,4.04766237,2315.0,2313.1,0.46545151]
[1769960391246,0.00418893,2316.6,2313.1,0.46545151]
[1769960391247,0.15466237,2315.5,2313.1,0.46545151]
[1769960391446,0.15466237,2315.0,2313.1,0.46545151]
[1769960391840,0.15466237,2315.5,2313.1,0.46545151]
[1769960392149,3.63820672,2316.0,2313.1,0.46545151]
[1769960392353,3.48773328,2316.6,2314.0,0.46545151]
[1769960392548,3.48773328,2316.6,2314.2,0.46545151]
[1769960392744,0.00418893,2316.6,2314.2,0.46545151]
[1769960392950,0.00418893,2316.6,2314.7,0.46545151]
[1769960393247,0.17015447,2316.5,2314.7,0.46936704]
[1769960393844,0.17407,2318.4,2314.9,3.48354435]
[1769960394046,3.48354435,2317.8,2314.8,3.893]
[1769960394449,3.65761435,2317.3,2313.9,3.48354435]
[1769960394655,3.65761435,2317.3,2314.1,0.21626]
[1769960394948,0.17826094,2317.1,2314.1,0.00408532]
[1769960395153,0.17826094,2316.7,2314.1,0.00408532]
[1769960395347,0.17826094,2316.2,2314.1,0.00408532]
[1769960395745,0.17826094,2315.7,2314.1,0.00408532]
[1769960395950,0.18314311,2315.5,2314.1,0.00408532]
[1769960396147,0.18213773,2315.5,2313.5,0.46545151]
[1769960396352,0.00387679,2315.5,2313.5,0.46545151]
[1769960397053,0.18034927,2315.1,2313.5,0.46545151]
[1769960397350,0.00488217,2314.9,2313.5,0.46905531]
[1769960397556,0.17674547,2314.7,2312.5,0.46545151]
[1769960397950,0.18162764,2314.5,2312.5,0.46545151]
[1769960398652,3.48354435,2314.1,2312.5,0.46953435]
[1769960398852,0.00488217,2313.6,2312.5,0.46953435]
[1769960399047,0.00488217,2313.4,2312.5,0.46953435]
[1769960399448,0.00387721,2313.6,2312.5,0.00408284]
[1769960399449,0.00488217,2313.1,2312.5,0.00408284]
[1769960399651,0.00488217,2313.2,2312.5,0.00408284]
[1769960400050,0.00488217,2312.8,2312.0,0.46545151]
[1769960400358,0.00488217,2312.6,2311.5,0.46545151]
[1769960400551,0.1638464,2313.6,2310.6,0.46545151]
[1769960400758,0.00387721,2313.6,2311.1,3.94899586]
[1769960401049,0.00387721,2313.6,2311.2,0.46545151]
[1769960401449,0.00387721,2313.6,2311.6,0.46545151]
[1769960401651,3.48354435,2315.6,2312.8,0.46545151]
[1769960401851,0.15996919,2316.0,2313.3,0.46545151]
[1769960402055,3.64351354,2315.6,2313.3,0.46545151]
[1769960402255,0.15996919,2315.5,2313.3,0.46545151]
[1769960402459,0.15996919,2316.0,2313.3,0.46545151]
[1769960402657,0.15146207,2315.9,2313.3,0.46880867]
[1769960402853,3.48743859,2316.0,2313.3,0.46880867]
[1769960402854,0.15634424,2315.4,2313.3,0.46880867]
[1769960403054,3.48354435,2315.0,2313.3,0.46880867]
[1769960403257,0.15146207,2315.9,2313.3,0.46880867]
[1769960403754,3.63500642,2315.5,2313.3,0.46880867]
[1769960404059,0.15146207,2315.9,2313.3,0.46880867]
[1769960404254,3.13500642,2315.0,2313.3,0.46880867]
[1769960404457,3.63500642,2314.5,2313.3,0.00335716]
[1769960404766,0.15146207,2314.4,2312.8,0.46545151]
[1769960405058,0.00488217,2313.5,2311.8,0.46545151]
[1769960405255,3.12653683,2315.0,2311.8,0.46545151]
[1769960405462,3.12653683,2315.0,2311.7,6.40322884]
[1769960405463,3.62653683,2314.5,2312.2,0.46545151]
[1769960405649,0.14299248,2314.4,2312.2,0.46874278]
[1769960405851,0.00488217,2313.5,2312.2,0.00329127]
[1769960406155,3.631419,2314.0,2312.2,0.46874278]
[1769960406355,4.7375074,2315.0,2312.2,0.46874278]
[1769960406558,3.62336572,2315.5,2312.2,0.46874278]
[1769960406758,3.893,2315.9,2312.8,0.46545151]
[1769960406961,0.14479397,2316.5,2313.3,0.46545151]
[1769960407157,3.48354435,2315.8,2313.7,0.46545151]
[1769960407457,0.14492294,2315.7,2313.7,0.46545151]
[1769960407655,0.14492294,2315.0,2312.8,0.4623525]
[1769960407861,0.0048949,2315.0,2312.8,0.4623525]
[1769960408055,0.14492294,2314.7,2312.8,0.4623525]
[1769960408258,0.14492294,2314.5,2312.8,0.4623525]
[1769960408859,0.14512149,2314.0,2312.2,0.46564377]
[1769960409062,4.03812149,2313.9,2312.2,0.00329127]
[1769960409260,0.00488217,2313.4,2312.2,0.00329127]
[1769960409657,0.00488217,2312.5,2310.9,0.4623525]
[1769960409860,0.14512149,2312.9,2310.9,0.4623525]
[1769960410265,0.00488217,2312.7,2310.9,0.4623525]
[1769960410559,0.00488217,2311.9,2310.4,0.4623525]
[1769960410760,0.00321957,2311.9,2310.4,0.46658016]
[1769960410962,3.48354435,2311.6,2310.4,0.00422766]
[1769960411166,0.00488217,2311.8,2310.5,0.4623525]
[1769960411462,0.00321957,2311.9,2310.5,0.4623525]
[1769960411761,0.15805557,2311.3,2308.9,0.4623525]
[1769960411964,0.15805557,2311.2,2308.9,0.4623525]
[1769960412563,0.15805557,2311.1,2308.9,0.4623525]
[1769960412772,0.15604073,2312.1,2309.0,0.4623525]
[1769960412969,3.64280465,2311.9,2309.2,0.4623525]
[1769960413268,0.00321957,2311.9,2309.2,0.4623525]
[1769960413467,0.1592603,2311.9,2309.2,0.4623525]
[1769960414169,0.00321957,2311.9,2309.2,0.4623525]
[1769960414362,0.15604073,2311.6,2308.4,2.94990649]
[1769960414564,0.45184105,2310.7,2307.9,2.54777423]
[1769960414769,0.45184105,2311.2,2308.5,3.48354435]
[1769960414971,3.48354435,2311.8,2308.5,2.54777423]
[1769960414972,0.45184105,2311.7,2308.5,2.54777423]
[1769960415171,0.45184105,2311.7,2308.5,3.48354435]
[1769960415374,0.45184105,2311.2,2308.6,3.895]
[1769960416169,0.45184105,2311.7,2309.0,3.48354435]
[1769960416466,0.45184105,2311.7,2309.2,0.4623525]
[1769960416671,0.45184105,2311.5,2309.2,0.4623525]
[1769960416866,0.45184105,2311.3,2309.2,0.4623525]
[1769960417067,0.45672322,2311.3,2309.2,0.4623525]
[1769960417270,0.45184105,2311.2,2309.2,0.4623525]
[1769960417463,0.45184105,2310.5,2308.6,0.4623525]
[1769960417665,3.896,2311.3,2308.6,0.4623525]
[1769960417666,0.45184105,2311.2,2308.6,0.4623525]
[1769960418175,0.45184105,2310.9,2308.8,0.4623525]
[1769960418371,0.45184105,2309.5,2307.4,0.4623525]
[1769960418563,0.45184105,2309.4,2307.4,0.4623525]
[1769960418769,0.45672322,2309.4,2307.4,0.4623525]
[1769960419069,0.45184105,2309.9,2307.4,0.4623525]
[1769960419268,0.45184105,2310.9,2307.6,0.4623525]
[1769960419573,0.0045547,2309.9,2307.8,0.4623525]
[1769960419767,0.0045547,2309.9,2308.0,0.4623525]
[1769960420073,0.45639575,2309.9,2308.2,0.4623525]
[1769960420469,0.00488217,2309.7,2308.2,0.4623525]
[1769960420673,0.00943687,2309.9,2308.2,0.4623525]
[1769960421068,0.0045547,2309.9,2308.2,0.4623525]
[1769960421976,0.45184105,2310.9,2308.3,0.4623525]
[1769960422171,0.45184105,2310.9,2308.5,0.4623525]
[1769960422367,0.45184105,2310.7,2306.7,2.52496977]
[1769960422567,0.45184105,2309.8,2306.8,0.4623525]
[1769960422972,0.46123312,2309.8,2307.0,0.4623525]
[1769960423168,0.45635095,2309.8,2307.3,0.4623525]
[1769960423374,0.45635095,2309.8,2307.5,0.4623525]
[1769960423989,0.0045099,2309.8,2307.8,0.4623525]
[1769960424885,0.00488217,2309.7,2307.8,0.4623525]
[1769960425081,0.45635095,2309.8,2307.8,0.4623525]
[1769960425281,0.0045099,2309.8,2307.8,0.4623525]
[1769960425785,0.00488217,2309.7,2308.0,0.4623525]
[1769960425991,0.45635095,2309.8,2308.0,0.4623525]
[1769960426290,0.00488217,2309.4,2308.0,0.4623525]
[1769960426787,0.45184105,2309.5,2307.3,0.4623525]
[1769960427093,0.00488217,2308.8,2307.3,0.4623525]
[1769960427391,0.45184105,2308.5,2306.9,0.4623525]
[1769960427787,0.00488217,2308.2,2306.9,0.4623525]
[1769960428285,0.45184105,2308.5,2306.9,0.4623525]
[1769960428486,0.45184105,2308.5,2306.6,3.898]
[1769960428686,0.00488217,2308.2,2306.8,0.46544599]
[1769960428987,3.45174542,2309.5,2306.8,0.46544599]
[1769960428988,0.45184105,2308.9,2306.8,0.46544599]
[1769960429490,0.00488217,2308.6,2306.8,0.46544599]
[1769960429787,0.00488217,2308.5,2306.8,0.46544599]
[1769960429980,0.45184105,2309.7,2306.8,0.46544599]
[1769960430181,0.45672322,2309.5,2306.8,0.46544599]
[1769960430383,0.45184105,2309.7,2306.9,0.4623525]
[1769960430588,0.45184105,2309.7,2307.1,0.4623525]
[1769960430789,0.45184105,2309.7,2307.3,0.4623525]
[1769960434494,0.45184105,2308.4,2306.8,0.00309349]
[1769960434886,0.45184105,2308.2,2306.8,0.00309349]
[1769960435296,0.45184105,2308.7,2306.8,0.46544599]
[1769960435692,0.45184105,2309.7,2306.8,0.46544599]
[1769960435894,0.45184105,2309.5,2306.8,0.46544599]
[1769960436398,0.45184105,2309.2,2306.8,0.46544599]
[1769960436897,0.45184105,2308.8,2306.8,0.46544599]
[1769960437092,0.45184105,2308.6,2306.8,0.46544599]
[1769960438698,0.45184105,2308.6,2306.8,0.00309349]
[1769960438900,0.46793496,2308.4,2306.8,0.00309349]
[1769960439096,0.46793496,2308.4,2306.4,0.06290042]
[1769960439495,0.46793496,2308.4,2306.4,0.52919198]
[1769960440199,0.46793496,2308.4,2306.4,0.53392695]
[1769960440402,0.46793496,2308.4,2306.4,0.06763539]
[1769960440596,0.46793496,2308.4,2305.8,0.43492695]
[1769960441001,0.46793496,2308.3,2305.8,0.43492695]
[1769960441395,0.46793496,2308.2,2305.8,0.43492695]
[1769960441598,0.46793496,2308.2,2305.8,0.44021044]
[1769960441792,0.46793496,2308.0,2305.8,0.44021044]
[1769960441992,0.46793496,2307.8,2305.8,0.44021044]
[1769960442599,0.46793496,2307.8,2305.9,0.46629156]
[1769960442802,0.47197015,2308.0,2305.9,0.46629156]
[1769960443494,0.00403519,2308.0,2305.9,0.46629156]
[1769960444605,0.46793496,2308.5,2306.2,0.46629156]
[1769960445102,0.46793496,2308.5,2306.3,0.45514516]
[1769960445303,0.46343728,2309.5,2306.7,0.45514516]
[1769960445495,0.46343728,2309.3,2306.7,0.45514516]
[1769960446303,0.46343728,2309.2,2306.7,0.45514516]
[1769960447203,0.46343728,2309.0,2306.7,0.45514516]
[1769960449097,0.46343728,2309.0,2306.5,0.45514516]
[1769960449998,0.46343728,2308.9,2306.1,0.45514516]
[1769960450203,0.46343728,2308.4,2306.1,0.45514516]
[1769960450702,0.46343728,2308.3,2306.1,0.45514516]
[1769960452302,0.46343728,2308.3,2306.2,0.45514516]
[1769960452902,3.903,2308.9,2306.2,0.45514516]
[1769960452903,0.46343728,2308.8,2306.2,0.45514516]
[1769960453211,0.46343728,2308.8,2306.4,0.45514516]
[1769960454310,0.46343728,2308.8,2306.6,0.45514516]
[1769960455311,0.46343728,2308.8,2306.7,0.45514516]
[1769960455811,0.46343728,2308.8,2306.8,0.45514516]
[1769960459206,0.46343728,2308.8,2306.9,0.45514516]
[1769960459409,0.46343728,2308.8,2307.0,0.45514516]
[1769960459808,0.46343728,2308.7,2307.0,0.45514516]
[1769960460112,0.46343728,2308.6,2307.0,0.45514516]
[1769960460301,0.46343728,2308.2,2306.5,0.45514516]
[1769960460501,0.46343728,2307.8,2306.5,0.45514516]
[1769960460710,0.00891736,2307.4,2306.1,4.35814516]
[1769960461015,0.46343728,2306.4,2304.9,0.45514516]
[1769960461212,2.43674637,2306.7,2304.9,0.45514516]
[1769960461512,0.00404059,2307.8,2305.9,0.45514516]
[1769960461704,0.46747787,2307.8,2306.1,0.45514516]
[1769960461904,0.47235464,2307.6,2306.1,0.45514516]
[1769960462105,0.47235464,2307.2,2306.1,0.005475]
[1769960462305,0.00891736,2306.8,2306.1,0.005475]
[1769960462507,0.00891736,2306.6,2306.2,0.45514516]
[1769960462813,2.90018365,2307.6,2306.1,0.005475]
[1769960463009,2.43674637,2307.0,2305.0,3.903]
[1769960463211,2.43674637,2307.1,2305.1,0.45514516]
[1769960463509,2.44078696,2307.8,2305.4,0.45514516]
[1769960464008,0.00404059,2307.8,2305.5,3.00830496]
[1769960464213,0.00404059,2307.8,2305.9,0.45514516]
[1769960464610,2.44078696,2307.8,2305.9,0.45514516]
[1769960464806,4.331,2307.4,2305.5,0.45514516]
[1769960465022,0.46343728,2307.3,2305.5,0.45514516]
[1769960465515,0.46343728,2307.7,2305.7,0.45514516]
[1769960465707,0.00404059,2307.8,2305.7,3.00830496]
[1769960465913,0.00404059,2307.8,2305.9,3.00830496]
[1769960466114,0.00404059,2307.8,2306.2,0.45514516]
[1769960466311,0.00404059,2307.8,2306.4,0.45514516]
[1769960467114,0.46747787,2307.8,2306.4,0.45514516]
[1769960467917,0.46747787,2307.8,2306.3,3.903]
[1769960468219,0.47436902,2307.4,2305.6,0.49812796]
[1769960468414,0.47436902,2307.2,2305.6,0.49812796]
[1769960468611,0.47436902,2307.2,2305.4,0.0042401]
[1769960468813,0.47436902,2307.1,2305.4,0.50236806]
[1769960469817,2.90327513,2306.7,2305.4,0.0042401]
[1769960470111,3.904,2306.6,2304.6,0.49812796]
[1769960470312,2.42890611,2307.1,2304.8,0.49812796]
[1769960470612,0.47436902,2306.6,2304.9,0.49812796]
[1769960470815,0.47436902,2306.6,2304.3,0.49812796]
[1769960470816,0.47436902,2306.3,2304.3,0.49812796]
[1769960471011,0.47436902,2306.0,2304.3,0.50135516]
[1769960471212,0.47436902,2306.0,2304.3,0.0032272]
[1769960471213,7.23427513,2305.8,2304.3,0.0032272]
[1769960471416,2.42890611,2305.4,2303.5,0.49812796]
[1769960471618,2.42890611,2305.2,2302.8,0.49812796]
[1769960471817,36.43359171,2305.2,2302.8,0.49812796]
[1769960472007,0.47186902,2305.8,2303.4,0.49812796]
[1769960472208,2.42890611,2305.7,2303.4,0.49812796]
[1769960472409,0.47186902,2305.8,2303.4,0.5026413]
[1769960472609,0.47186902,2305.8,2303.6,0.21725]
[1769960472814,0.00552955,2306.0,2303.9,0.49812796]
[1769960472815,0.00302955,2306.0,2303.9,0.49812796]
[1769960473322,0.00302955,2306.0,2304.0,0.49812796]
[1769960474016,0.00302955,2306.0,2304.4,0.49812796]
[1769960474915,0.47739857,2306.0,2304.4,0.49812796]
[1769960475621,0.00302955,2306.0,2304.4,0.49812796]
[1769960475822,0.47436902,2306.9,2304.5,0.49812796]
[1769960476321,0.47436902,2306.2,2304.5,0.49812796]
[1769960476512,0.47436902,2306.1,2304.5,0.49812796]
[1769960476711,0.47887804,2306.1,2304.5,0.49812796]
[1769960478416,34.52489782,2307.2,2305.5,0.49812796]
[1769960478716,0.47436902,2308.2,2305.7,0.49812796]
[1769960479118,0.47436902,2308.1,2305.7,0.49812796]
[1769960479314,0.47824414,2308.1,2305.7,0.50295062]
[1769960479523,0.47436902,2308.0,2305.7,0.50295062]
[1769960480032,0.47436902,2307.6,2305.7,0.50295062]
[1769960480226,0.47436902,2307.4,2305.7,0.50295062]
[1769960480419,0.00387512,2308.1,2305.8,0.49812796]
[1769960480723,0.47436902,2307.9,2305.9,0.49812796]
[1769960481321,0.47436902,2307.7,2305.9,0.49812796]
[1769960481920,4.81196902,2307.7,2305.9,0.49812796]
[1769960482229,0.47436902,2307.7,2305.9,0.49812796]
[1769960482620,0.47436902,2307.6,2305.9,0.49812796]
[1769960482821,0.47436902,2307.5,2305.9,0.49812796]
[1769960483128,0.47436902,2308.0,2305.9,0.49812796]
[1769960483618,0.47436902,2307.8,2305.9,0.49812796]
[1769960484729,0.47436902,2307.7,2305.9,0.49812796]
[1769960485122,0.47436902,2307.6,2305.9,0.49812796]
[1769960485727,4.81196902,2307.6,2305.9,0.49812796]
[1769960486227,0.47436902,2307.4,2305.9,0.49812796]
[1769960486420,4.3376,2307.3,2305.9,0.49812796]
[1769960486619,4.81196902,2307.3,2305.9,0.49812796]
[1769960486820,4.3376,2307.2,2305.9,0.49812796]
[1769960487427,0.47436902,2307.3,2305.9,0.49812796]
[1769960487928,4.81196902,2307.3,2305.9,0.49812796]
[1769960488128,4.3376,2307.2,2305.9,0.49812796]
[1769960488330,4.81196902,2307.2,2305.9,0.49812796]
[1769960488530,4.3376,2307.1,2305.9,0.49812796]
[1769960488822,4.81196902,2307.1,2305.9,0.49812796]
[1769960489022,0.47436902,2307.1,2305.9,0.49812796]
[1769960489226,0.47436902,2307.6,2305.9,0.49812796]
[1769960489934,0.47436902,2308.0,2306.0,0.49812796]
[1769960490226,0.00387512,2308.1,2305.7,0.00482266]
[1769960490227,0.00387512,2308.1,2306.3,0.49812796]
[1769960491225,4.3376,2307.9,2306.3,0.49812796]
[1769960491732,0.47436902,2308.0,2306.3,0.49812796]
[1769960491923,0.47436902,2307.9,2306.3,0.49812796]
[1769960492124,0.47436902,2307.8,2305.8,0.49812796]
[1769960492328,0.00387512,2308.1,2305.8,0.49812796]
[1769960492329,0.47436902,2307.7,2305.8,0.49812796]
[1769960492529,0.47436902,2307.6,2305.8,0.49812796]
[1769960492731,0.47436902,2307.8,2305.8,0.49812796]
[1769960492933,0.47436902,2307.8,2305.9,0.49812796]
[1769960493129,0.47436902,2307.4,2305.9,0.49812796]
[1769960493325,0.47436902,2307.3,2305.9,0.49812796]
[1769960493627,4.81196902,2306.5,2305.7,0.00482266]
[1769960493930,0.47436902,2306.9,2305.7,0.00482266]
[1769960494125,3.46800042,2307.3,2305.7,0.00482266]
[1769960494126,4.3376,2306.4,2305.7,0.00482266]
[1769960494320,0.0040816,2306.4,2304.6,3.904]
[1769960494729,0.47845062,2306.4,2304.6,3.904]
[1769960495036,0.0040816,2306.4,2304.6,3.904]
[1769960495232,0.0040816,2306.4,2304.6,3.90831032]
[1769960495426,0.47436902,2307.2,2305.2,3.46800042]
[1769960495732,0.47436902,2307.2,2305.2,8.61902972]
[1769960496030,0.47436902,2307.6,2305.3,5.1510293]
[1769960496229,0.47436902,2307.6,2305.1,0.47570501]
[1769960496624,0.47436902,2307.5,2305.1,0.47570501]
[1769960496830,0.47436902,2307.3,2305.1,0.47570501]
[1769960497629,0.46973997,2306.9,2305.1,0.47570501]
[1769960498132,0.46973997,2306.5,2305.1,0.47570501]
[1769960498531,4.80733997,2306.3,2305.1,0.47570501]
[1769960498826,0.46973997,2306.3,2304.7,0.46326117]
[1769960499030,0.46973997,2306.0,2304.7,0.46326117]
[1769960499225,0.46973997,2306.0,2304.6,3.90831032]
[1769960499427,0.46973997,2305.6,2304.6,3.90831032]
[1769960499623,0.00352218,2305.6,2304.6,3.90831032]
[1769960500226,0.00352218,2305.6,2304.6,4.37157149]
[1769960500932,0.00352218,2305.6,2304.7,0.46326117]
[1769960501431,4.3376,2305.4,2304.6,3.90831032]
[1769960501633,4.3376,2305.5,2304.6,3.90831032]
[1769960501821,4.80733997,2305.5,2304.6,3.90831032]
[1769960502028,4.3376,2305.1,2304.6,3.90831032]
[1769960502225,0.00352218,2305.6,2304.6,3.90831032]
[1769960502430,0.00352218,2305.6,2304.7,0.46326117]
[1769960503833,0.46973997,2306.3,2304.7,0.46326117]
[1769960504033,0.46973997,2306.1,2304.6,0.00431032]
[1769960504234,0.46973997,2306.1,2304.6,0.46757149]
[1769960504536,4.80254012,2306.0,2304.6,0.46757149]
[1769960504838,0.46866641,2306.0,2304.6,0.46757149]
[1769960505136,4.3376,2305.8,2304.6,0.46757149]
[1769960505335,4.3376,2305.9,2304.6,0.46757149]
[1769960505728,0.46866641,2306.0,2304.6,0.00431032]
[1769960505729,4.80254012,2305.7,2304.6,0.00431032]
[1769960505932,0.46494012,2305.7,2304.6,0.00431032]
[1769960506133,4.3376,2305.5,2304.6,0.00431032]
[1769960506537,4.3376,2305.4,2304.6,0.00431032]
[1769960506733,4.3376,2305.5,2304.6,0.48564547]
[1769960507036,8.76331137,2306.7,2304.6,0.48564547]
[1769960507037,0.46494012,2306.7,2304.6,0.48564547]
[1769960507335,0.46494012,2307.6,2305.0,0.48133515]
[1769960507535,0.46494012,2307.6,2305.2,0.48133515]
[1769960507735,4.85831137,2307.8,2305.2,0.48133515]
[1769960507736,0.46494012,2307.4,2305.2,0.48133515]
[1769960508039,0.46494012,2307.7,2305.8,0.48133515]
[1769960508238,0.46847304,2307.7,2305.8,0.48133515]
[1769960508441,0.46494012,2307.4,2305.8,0.48133515]
[1769960508835,4.80254012,2307.2,2305.8,0.48133515]
[1769960509340,0.00353292,2307.7,2305.8,0.48133515]
[1769960509341,0.46494012,2307.6,2305.8,0.48133515]
[1769960510042,0.00353292,2307.7,2305.8,0.48133515]
[1769960510336,0.00353292,2307.7,2306.0,0.48133515]
[1769960510731,0.46847304,2307.7,2306.0,0.48133515]
[1769960510934,4.80607304,2307.7,2306.0,0.48133515]
[1769960511128,0.46847304,2307.7,2306.0,0.48133515]
[1769960511327,4.3376,2307.3,2306.0,0.48133515]
[1769960511537,4.3376,2307.2,2306.0,0.48133515]
[1769960511740,4.3376,2307.3,2306.0,0.48133515]
[1769960511940,4.3376,2307.2,2306.0,0.48133515]
[1769960512438,4.3376,2307.1,2306.0,0.48133515]
[1769960512641,0.46494012,2307.1,2306.0,0.48133515]
[1769960512829,4.3376,2307.0,2306.0,0.48133515]
[1769960513236,4.3376,2306.8,2306.0,0.48133515]
[1769960513437,4.3376,2306.6,2305.6,0.48133515]
[1769960513735,0.46494012,2307.6,2305.6,0.48133515]
[1769960513936,0.46494012,2307.2,2305.6,0.48133515]
[1769960514338,0.46494012,2307.6,2305.6,0.48133515]
[1769960514535,0.46494012,2307.6,2305.8,0.48133515]
[1769960514736,0.00353292,2307.7,2305.9,0.48133515]
[1769960515141,0.00353292,2307.7,2306.1,0.48133515]
[1769960515332,0.00353292,2307.7,2306.3,0.48133515]
[1769960515535,0.00353292,2307.7,2306.5,0.48133515]
[1769960515738,4.3376,2307.6,2306.5,0.48133515]
[1769960516442,0.00353292,2307.7,2306.5,0.48133515]
[1769960516644,0.00353292,2307.7,2306.3,0.00424]
[1769960516645,0.46847304,2307.7,2306.3,0.48557515]
[1769960517033,0.46847304,2307.7,2306.3,0.00424]
[1769960517244,0.46494012,2306.7,2305.4,0.48133515]
[1769960517744,4.80254012,2306.2,2305.1,8.194]
[1769960517942,0.46494012,2306.2,2305.1,8.194]
[1769960518240,0.46494012,2305.9,2305.1,8.19860869]
[1769960518545,0.46494012,2305.9,2305.1,2.88579955]
[1769960518546,4.3376,2305.8,2305.1,2.88579955]
[1769960518742,4.3376,2305.2,2304.2,0.48133515]
[1769960518942,0.46494012,2305.6,2304.2,0.48133515]
[1769960519144,4.3376,2305.5,2304.2,0.48133515]
[1769960519343,0.00445468,2305.9,2304.2,0.48133515]
[1769960519643,0.46494012,2307.6,2304.9,0.48133515]
[1769960519841,0.46494012,2307.6,2305.0,0.48133515]
[1769960520040,0.46494012,2307.6,2305.2,0.48133515]
[1769960520239,0.46494012,2307.5,2305.4,0.48133515]
[1769960520441,3.46800042,2308.0,2305.4,0.48133515]
[1769960520442,0.46494012,2307.2,2305.4,0.48133515]
[1769960520641,0.46494012,2307.2,2305.4,0.48627702]
[1769960520944,0.00431223,2307.5,2306.0,0.48133515]
[1769960521948,4.3376,2307.3,2306.0,0.48133515]
[1769960522143,0.00431223,2307.5,2306.0,0.48133515]
[1769960522340,0.46494012,2308.5,2306.4,0.48133515]
[1769960522539,4.3376,2308.0,2306.6,0.48133515]
[1769960522848,0.46494012,2308.8,2306.8,0.48133515]
[1769960523047,4.3376,2308.6,2306.8,0.48133515]
[1769960523344,0.00305644,2308.6,2307.0,0.69826515]
[1769960523542,0.00305644,2308.6,2307.1,0.48133515]
[1769960523744,0.00305644,2308.6,2307.1,0.48533837]
[1769960524146,0.00305644,2308.6,2307.1,0.70225837]
[1769960524447,0.46494012,2309.8,2307.5,0.48133515]
[1769960524644,4.80254012,2309.8,2307.7,0.48133515]
[1769960524841,4.80254012,2309.8,2307.6,4.285]
[1769960524842,3.46800042,2310.0,2307.9,0.48133515]
[1769960525147,4.3376,2308.9,2307.9,0.48133515]
[1769960525442,0.00359041,2308.9,2307.9,0.48133515]
[1769960525842,0.46494012,2310.1,2307.9,0.48133515]
[1769960526149,7.1492591,2310.7,2307.9,0.48133515]
[1769960526150,0.46494012,2310.6,2308.4,0.48133515]
[1769960526348,0.46494012,2310.6,2308.1,3.46800042]
[1769960526349,0.46494012,2310.6,2308.7,0.48133515]